Cogmind - Beta 13 @@@ ROGUE MODE // 2024.04.17 @ 19:55:18 Player: SVIT13 Result: Destroyed by Y-45 Defender with Heavy Assault Rifle Performance ------------- Evolutions (1) 500 Regions Visited (2) 400 Robots Destroyed (20) 100 Value Destroyed (293) 293 Prototype IDs (0) 0 Alien Tech Used (0) 0 Bonus (0) 0 TOTAL SCORE: 1293 Bonus ------- None Cogmind --------- Core Integrity 0/400 Matter 190/300 Energy 100/100 System Corruption 0% Temperature Cool (9) Movement Core (200) Ox3 Location -9/Materials Parts ------- > --- POWER (1) -------- (None) > --- PROPULSION (4) --- (None) > --- UTILITY (2) ------ Medium Storage Unit > --- WEAPON (2) ------- Mining Claw > --- INVENTORY (10) --- Large Storage Unit Weight Redist. System Weight Redist. System Advanced Visual Processing Unit Improved Terrain Scanner Heavy Armor Plating Trap Extractor (0/4) Peak State ------------ > --- POWER ------------ Light Ion Engine > --- PROPULSION ------- Flight Unit Flight Unit Flight Unit Flight Unit > --- UTILITY ---------- Medium Storage Unit Weight Redist. System > --- WEAPON ----------- Light Assault Rifle Mining Claw > --- INVENTORY -------- Light Ion Engine Wheel Large Storage Unit Weight Redist. System Advanced Visual Processing Unit Improved Terrain Scanner Heavy Armor Plating Trap Extractor Light Assault Rifle [Rating: 12] Favorites ----------- Power Light Ion Engine Engine Light Ion Engine Propulsion Flight Unit Treads Light Treads Wheel Wheel Flight Unit Flight Unit Utility Medium Storage Unit Device Weight Redist. System Storage Medium Storage Unit Weapon Light Assault Rifle Energy Gun EM Pulse Gun Ballistic Gun Light Assault Rifle Slashing Weapon Mining Claw Build | -11 -10 -9 ------- Run | Yrd Mat Mat Slots Evolved 2 | . . 2 Power . | . . . Propulsion 2 | . . 2 Utility . | . . . Weapon . | . . . Parts Attached 33 | 7 14 12 Power 6 | 1 4 1 Engine 6 | 1 4 1 Core . | . . . Reactor . | . . . Propulsion 10 | 2 5 3 Treads 2 | 2 . . Leg . | . . . Wheel 2 | . 1 1 Hover . | . . . Flight 6 | . 4 2 Utility 8 | 2 4 2 Device 2 | 1 1 . Storage 6 | 1 3 2 Processor . | . . . Hackware . | . . . Protection . | . . . Artifact . | . . . Weapon 9 | 2 1 6 Energy Gun 4 | 1 1 2 Energy Cannon . | . . . Ballistic Gun 4 | 1 . 3 Ballistic Cannon . | . . . Launcher . | . . . Special Weapon . | . . . Impact Weapon . | . . . Slashing Weapon 1 | . . 1 Piercing Weapon . | . . . Special Melee Weapon . | . . . Unidentified Prototypes . | . . . Parts Lost 8 | . . 8 Power 2 | . . 2 Propulsion 3 | . . 3 Utility . | . . . Weapon 3 | . . 3 Highest Loss Streak 7 | . . 7 To Critical Strikes . | . . . Average Slot Usage (%) 92 | . 93 91 Engine 11 | . 12 10 Treads 6 | . 12 . Flight 26 | . 15 36 Device 11 | . 14 9 Storage 12 | . 14 11 Energy Gun 7 | . 8 5 Ballistic Gun 11 | . 14 9 Slashing Weapon 3 | . . 6 Naked Turns . | . . . Heaviest Build 17 | 12 16 17 Greatest Support 40 | 40 40 22 Greatest Overweight (x) 1 | . 1 . Average Overweight (x) . | . . . Largest Inventory Capacity 25 | 8 25 15 Average Capacity 9 | 7 8 10 Most Carried 10 | 5 10 10 Average Carried 6 | 3 7 8 Final Capacity 10 | 8 10 10 Final Carried 10 | 3 10 8 Class Distribution -------------------- 68% | Mutant 31% | Scavenger-Mutant Dominant Class ---------------- Mutant | -10/Materials Scavenger-Mutant | -9/Materials Resources | -11 -10 -9 ----------- Run | Yrd Mat Mat Matter Collected 450 | 280 170 . Remotely . | . . . Salvage Created 720 | 236 289 195 Parts 38 | 10 18 10 Haulers Intercepted 1 | . 1 . Recyclers Shooed 1 | . 1 . Parts Field Recycled . | . . . Retrieved Matter . | . . . Parts Self-Destructed . | . . . Prevented . | . . . Kills | -11 -10 -9 ------- Run | Yrd Mat Mat Combat Hostiles Destroyed 11 | . 6 5 Melee 1 | . . 1 Guns 9 | . 5 4 AOE 1 | . 1 . Classes Destroyed 7 | 3 3 1 Worker 2 | 2 . . Tunneler 3 | 3 . . Hauler 1 | . 1 . Recycler 2 | 1 1 . Watcher 1 | . 1 . Swarmer 6 | . 6 . Grunt 5 | . . 5 Best Kill Streak 4 | 4 3 2 Combat Bots Only 3 | . 3 2 Max Kills in Single Turn 2 | 2 1 1 Gunslinging . | . . . Exploded 1 | . 1 . Melee 1 | . . 1 Uniques/NPCs Destroyed . | . . . Combat | -11 -10 -9 -------- Run | Yrd Mat Mat Hostile Shots Fired 115 | . 19 96 Missed 34 | . 6 28 Damage Taken 980 | . 134 846 Core 402 | . . 402 Absorbed by Shields . | . . . Regen/Repaired (Parts) 29 | . 16 13 Core Remaining (%) 100 | 100 100 . Volleys Fired 71 | 10 30 31 Largest 2 | 2 2 1 Hottest 60 | 60 60 40 Shots Fired 97 | 20 46 31 Gun 97 | 20 46 31 Cannon . | . . . Launcher . | . . . Special . | . . . Kinetic 70 | 10 30 30 Thermal . | . . . Explosive . | . . . Electromagnetic 27 | 10 16 1 Robot Hit Streak 8 | 7 7 8 Robot Miss Streak 5 | 1 5 2 Penetration Max . | . . . Secondary Targets . | . . . Shots Hit Robots 67 | 14 22 31 Core Hits 31 | 8 13 10 Critical Kills . | . . . Critical Parts Destroyed 1 | . 1 . Critical Strikes 1 | . 1 . Destroy 1 | . 1 . Melee Attacks 22 | . . 22 Impact . | . . . Slashing 22 | . . 22 Piercing . | . . . Sneak Attacks 1 | . . 1 Combat Hostiles . | . . . Follow-up Attacks . | . . . Damage Inflicted 719 | 149 246 324 Guns 512 | 149 219 144 Cannons . | . . . Explosions 27 | . 27 . Melee 180 | . . 180 Ramming . | . . . Kinetic 284 | 53 87 144 Thermal 27 | . 27 . Explosive . | . . . Electromagnetic 228 | 96 132 . Impact . | . . . Slashing 180 | . . 180 Piercing . | . . . Highest Corruption . | . . . Average Corruption . | . . . Corruption Purged . | . . . Corruption Blocked . | . . . Overload Shots . | . . . Overflow Damage 10 | . . 10 Projectiles . | . . . Explosions . | . . . Melee 10 | . . 10 Knockbacks . | . . . Impact . | . . . Kinetic . | . . . Secondary . | . . . Self-Inflicted Damage 30 | . 30 . Shots 1 | . 1 . Rammed . | . . . Targets Rammed . | . . . Kicked . | . . . Crushed . | . . . Highest Temperature 52 | 40 52 12 Average Temperature 16 | 17 19 5 Received Heat Transfer 387 | . 6 381 Siege Activations . | . . . Robots Corrupted . | . . . Combat Hostiles . | . . . Parts Fried . | . . . Impact Corruptions . | . . . Robots Melted . | . . . Combat Hostiles . | . . . Parts Melted . | . . . Heat Transferred . | . . . Parts Sabotaged . | . . . Parts Stolen . | . . . Parts Stripped . | . . . Power Chain Reactions 1 | . 1 . Alert | -11 -10 -9 ------- Run | Yrd Mat Mat Peak Influence 269 | 30 269 225 Initial 113 | . 19 113 Average 101 | 14 109 142 Maximum Alert Level 1 | . 1 1 Low Security (%) 89 | 100 77 95 Level 1 10 | . 22 4 Level 2 . | . . . Level 3 . | . . . Level 4 . | . . . Level 5 . | . . . High Security . | . . . Max Security . | . . . Squads Dispatched 7 | . 2 5 Investigation 4 | . 1 3 Extermination . | . . . Reinforcement 3 | . 1 2 Assault . | . . . Garrison . | . . . Intercept . | . . . Searches Triggered . | . . . Construction Impeded . | . . . Haulers Reinforced . | . . . Active Scanning Responses . | . . . Cargo Convoy Interrupts . | . . . Stealth | -11 -10 -9 --------- Run | Yrd Mat Mat Distress Signals . | . . . Communications Jammed . | . . . Distress Signals . | . . . Times Spotted 31 | . 11 20 Peak Tracking Total 13 | . 3 13 Tactical Retreats 4 | . 2 2 Traps | -11 -10 -9 ------- Run | Yrd Mat Mat Traps Triggered 1 | . . 1 Indirectly . | . . . Trap Hack Attempts . | . . . Triggered . | . . . Disarmed . | . . . Reprogrammed . | . . . Reused . | . . . Traps Extracted . | . . . Installed . | . . . Triggered . | . . . Machines | -11 -10 -9 ---------- Run | Yrd Mat Mat Machines Disabled 1 | . 1 . Max in Single Turn 1 | . 1 . Machines Repaired . | . . . Machines Dismantled . | . . . Machines Sabotaged . | . . . Overloaded Fab Kills . | . . . Hacking | -11 -10 -9 --------- Run | Yrd Mat Mat Machines Accessed 8 | . 3 5 Terminals 6 | . 2 4 Fabricators . | . . . Repair Stations 2 | . 1 1 Recycling Units . | . . . Scanalyzers . | . . . Garrison Access . | . . . Total Hacks 24 | . 9 15 Successful 15 | . 6 9 Failed 9 | . 3 6 Catastrophic 1 | . . 1 Database Lockouts . | . . . Manual . | . . . Terminals 14 | . 4 10 Fabricators . | . . . Repair Stations 10 | . 5 5 Recycling Units . | . . . Scanalyzers . | . . . Garrison Access . | . . . Terminal Hacks 8 | . 3 5 Level Access Points 1 | . 1 . Alert Level 2 | . . 2 Unreport Threat 1 | . . 1 Locate Traps 1 | . . 1 Hauler Manifests 1 | . . 1 Zone Layout 2 | . 2 . Fabricator Hacks . | . . . Repair Station Hacks 7 | . 3 4 Scan Component 4 | . 2 2 Repair 3 | . 1 2 Recycling Unit Hacks . | . . . Scanalyzer . | . . . Garrison Access Hacks . | . . . Unauthorized Hacks . | . . . Terminals . | . . . Fabricators . | . . . Repair Stations . | . . . Recycling Units . | . . . Scanalyzers . | . . . Garrison Access . | . . . Data Cores Recovered . | . . . Used . | . . . Hacking Detections 4 | . 1 3 Full Trace Events 3 | . 1 2 Feedback Events . | . . . Feedback Blocked . | . . . Robot Schematics Acquired . | . . . Robots Built . | . . . Authchips . | . . . Time . | . . . Total Robot Build Rating . | . . . Part Schematics Acquired . | . . . Parts Built . | . . . Authchips . | . . . Time . | . . . Total Part Build Rating . | . . . Parts Repaired 3 | . 1 2 Time 78 | . 26 52 Parts Recycled . | . . . Recycled Matter . | . . . Retrieved Matter . | . . . Retrieved Components . | . . . Parts Scanalyzed . | . . . Part Schematics Acquired . | . . . Parts Damaged . | . . . Bothacking | -11 -10 -9 ------------ Run | Yrd Mat Mat Used RIF Installer . | . . . Robots Hacked . | . . . Non-combat . | . . . Combat . | . . . Robot Hacks Applied . | . . . Relay Couplers Released . | . . . Fabnet Peak Effective % . | . . . Robots Rewired . | . . . Allies Hacked . | . . . Hacks Repelled . | . . . Allies | -11 -10 -9 -------- Run | Yrd Mat Mat Total Allies . | . . . Largest Group . | . . . Highest-Rated Group . | . . . Highest-Rated Ally . | . . . Total Orders . | . . . Ally Attacks . | . . . Total Damage . | . . . Kills . | . . . Allies Corrupted . | . . . Allies Melted . | . . . Intel | -11 -10 -9 ------- Run | Yrd Mat Mat Robot Analysis Total . | . . . Derelict Logs Recovered . | . . . Drone Launches . | . . . Drone Recoveries . | . . . Exploration | -11 -10 -9 ------------- Run | Yrd Mat Mat Turns Passed 1007 | 219 391 397 Spaces Moved 814 | 121 388 305 Core 17 | 17 . . Treads 190 | 104 86 . Legs . | . . . Wheels 5 | . 5 . Hover . | . . . Flight 602 | . 297 305 Fastest Speed 31 | 50 37 31 Average Speed 65 | 144 66 33 Slowest Speed 160 | 160 160 34 Overloaded Moves . | . . . Propulsion Burnouts . | . . . Robots Hopped 8 | . 7 1 Cave-ins Triggered . | . . . Exploration Rate (%) 28 | 6 49 31 Regions Visited 2 Branch Regions . Pre-discovered Areas . | . . . Known Exits Taken 1 | . 1 . Unknown Exits Taken 1 | 1 . . Scrap Searched . | . . . Spaces Dug 13 | . . 13 Terrain Destroyed 16 | . 3 13 Melee 13 | . . 13 Projectile . | . . . AOE 3 | . 3 . Terrain Rammed . | . . . Walls Destroyed . | . . . Machines Disabled . | . . . Actions | -11 -10 -9 --------- Run | Yrd Mat Mat Total 1150 | 147 475 528 Wait 169 | . 16 153 Move 798 | 120 375 303 Hop 6 | . 5 1 Pick Up 34 | 10 20 4 Fast Attach . | . . . Attach 16 | 7 2 7 Detach 3 | . 2 1 Swap 17 | . 12 5 Drop 14 | . 13 1 Fire 71 | 10 30 31 Melee 22 | . . 22 Ram . | . . . Kick . | . . . Crush . | . . . Escape Stasis . | . . . Rewire . | . . . Trap . | . . . Miscellaneous . | . . . Route ------- -11/Scrapyard -10/Materials (discovered 3 exits: *Mat x3) -9/Materials (discovered 1 exit: [*Mat]) History --------- Turn | Location | Event 10 | -11/Scrapyard | Discovered new exit (range 15) 220 | -11/Scrapyard | Entered Materials 294 | -10/Materials | Identified exit to Materials 316 | -10/Materials | Build established: Mutant 473 | -10/Materials | Repaired Lgt. Ion Engine 611 | -10/Materials | Entered another Materials area 611 | -9/Materials | Evolved 2 slots: Propulsion x2 891 | -9/Materials | Discovered new exit (range 11) 921 | -9/Materials | Repaired Flight Unit 924 | -9/Materials | Build established: Scavenger-Mutant 947 | -9/Materials | Repaired Flight Unit 984 | -9/Materials | Core integrity fell below 50% 1001 | -9/Materials | Core integrity fell below 20% 1008 | -9/Materials | Destroyed by Y-45 Defender with Heavy Assault Rifle Last Messages --------------- 00959_ Flight Unit destroyed. 00960_ K-01 Serf cleans the Repair Station. 00965_ Lgt. Assault Rifle destroyed. 00965_ Flight Unit destroyed. 00965_ K-01 Serf cleans the Repair Station. 00972_ Destroyed Heat Sink. 00974_ G-34 Mercenary destroyed. 00974_ K-01 Serf collects debris. 00979_ G-34 Mercenary destroyed. 00984_ K-01 Serf collects debris. 00991_ Lgt. Ion Engine destroyed. 00993_ K-01 Serf cleans the Repair Station. 00994_ K-01 Serf destroyed. 00996_ K-01 Serf collects debris. 00997_ Lgt. Assault Rifle destroyed. 00999_ K-01 Serf collects debris. 01000_ G-34 Mercenary destroyed. 01002_ Critical hit (Burn: +37). 01002_ K-01 Serf collects debris. 01008_ Wheel destroyed. Map ----- +----------------------------------------------------+ | ?????????????????????????????????????????????????? | | ?????????????????????????????????????????????????? | | ?????????????????????????????????????????????????? | | ?????????????????????????????????????????????????? | | ?????????????????????????????????????????????????? | | ?????????????????????????????????##########??????? | | ?????????????????????????????????# """" #####??? | | ?????????????????????????????????# ""S"" # #??? | | ?????????????????????????????????# "" "" # < #??? | | ?????????????????????????????????# # #??? | | ?????????????????????????????????# / #??? | | ?????????????????????????????????# """ # ##?? | | ?????????????????????????????????# """ # "### | | ?????????????????????????????????# """ # # | | ????????????????????????????????## # # ! | | ?????????????????????????###????#"######### # ! | | ?????????????????????#???[ #???## #????##?# # ! | | ?????????????????????# ? #####"########## + | | ?????????????????????# """ ## # [ | | ?????????????????????# """ ## #### | | ?????????????????????# """ ## #??? | | ???????????????????### !=## #### ########??? | | ???????????????????? g %=*## #??# #?????????? | | ?????????????????????# =ggg## #??# #?????????? | | ?????????????????????#g"""Y## #??# ########??? | | ?????????????????????# "R@k## #??# #??? | | ?????????????????????# """Y## #??# / | | ?????????????????????# [gb[## ##?# # | | ????????????????????##+#k### #?# ###+####??? | | ????????????????????# =#?# #?? ????? | | ????????????????????+ T #?# #???""#???? | | ????????????????????# #?# #????"#???? | | ????????????????????### #### #?# #?????#???? | | ??????????????????????# ???#######?# #?????????? | | ??????????????????????# ???????????# ########??? | | ??????????????????????# ???????????# # #??? | | ??????????????????????# ???????????# # """#??? | | ?????????????????????? ???????????# # """#??? | | ??????????????????????# ???????????+ + """#??? | | ??????????????????????# ???????????# # #### | | ??????????????????????#????????????# # "T" # | | ???????????????????????????????????# ######## | | ???????????????????????????????????# #??????# [! | | ???????????????????????????????????# #??????# !| | | ???????????????????????????????????# #??????? | | ???????????????????????????????????+ ######## | | ???????????????????????????????????# !!! ##/# | | ???????????????????????????????????# !!! | | ???????????????????????????????????# ^!!! T #### | | ???????????????????????????????????# # | +----------------------------------------------------+ Best States ------------- Heat Dissipation 28 Energy Generation 10 Energy Capacity 125 Matter Stores 300 Matter Capacity 300 Sight Range 16 Terrain Scan Range 16 Terrain Scan Density 10 Additional Mass Support 6 Evasion (%) 63 Recoil Reduction 2 Item Schematics ----------------- None Robot Schematics ------------------ None Fabricated ------------ Nothing Alien Tech Used ----------------- None Achievements -------------- Party Time Challenges ------------ None Game ------ Seed StorageGodCoupler Manual? 0 Play Time 00:25:22 Cumulative 13.0 hours Start 2024.04.17 @ 19:32:40 End 2024.04.17 @ 19:55:18 Sessions 1 Manual Loads 0 Difficulty Rogue Special Mode None Game No. 20 Rogue 20 Adventurer 0 Explorer 0 Win Type - Total 0 Types 0/0/0/0/0/0/0/0/0 Lore% 13 Gallery% 13 Achievement% 14 Wizard Run 0 Options --------- Layout 1 ASCII 0 Keyboard 0 Movement Numpad Keybinds 0 Fullscreen 1 Font 24/Smallcaps Map View 50x35 Zoom Use 0% Tactical HUD 1 Map Filters NONE Filters NONE Steam 1 RUN: 10e62902-d558-4f7d-8668-c189efe1ada1